[Event "*** Titled Tuesday Blitz"]
[Site "Chess.com"]
[Date "2020.12.29"]
[Round "9"]
[White "Brave_spirit12"]
[Black "Dynamikus"]
[Result "0-1"]
[WhiteElo "2550"]
[BlackElo "2739"]
[TimeControl "180+1"]
[EndTime "11:44:14 PST"]
[Termination "Dynamikus won by resignation"]

1. e4 {[%clk 0:03:00.7]} 1... c6 {[%clk 0:02:59.7]} 2. Nc3 {[%clk 0:02:58.4]}
2... d5 {[%clk 0:03:00.6]} 3. Nf3 {[%clk 0:02:58.9]} 3... Bg4 {[%clk 0:02:58.6]}
4. h3 {[%clk 0:02:58.8]} 4... Bxf3 {[%clk 0:02:57.8]} 5. Qxf3 {[%clk 0:02:59.7]}
5... e6 {[%clk 0:02:58.4]} 6. d4 {[%clk 0:02:56.5]} 6... Nf6 {[%clk 0:02:53.5]}
7. e5 {[%clk 0:02:55.5]} 7... Nfd7 {[%clk 0:02:53]} 8. a3 {[%clk 0:02:55.4]}
8... c5 {[%clk 0:02:53.3]} 9. Ne2 {[%clk 0:02:55.5]} 9... cxd4 {[%clk 0:02:50]}
10. Bf4 {[%clk 0:02:54.9]} 10... Nc6 {[%clk 0:02:48.8]} 11. O-O-O {[%clk
0:02:53.6]} 11... Qb6 {[%clk 0:02:32.3]} 12. Kb1 {[%clk 0:02:32]} 12... Ndxe5
{[%clk 0:02:28.3]} 13. Bxe5 {[%clk 0:02:29.9]} 13... Nxe5 {[%clk 0:02:29.2]} 14.
Qb3 {[%clk 0:02:27.5]} 14... Qxb3 {[%clk 0:02:15.4]} 15. cxb3 {[%clk 0:02:28.4]}
15... Bc5 {[%clk 0:02:13.5]} 16. Nxd4 {[%clk 0:02:27.5]} 16... Bxd4 {[%clk
0:02:11.9]} 17. Rxd4 {[%clk 0:02:28.4]} 17... Ke7 {[%clk 0:02:10.5]} 18. Be2
{[%clk 0:02:16.7]} 18... g5 {[%clk 0:02:03.8]} 19. Re1 {[%clk 0:02:12.3]} 19...
Kd6 {[%clk 0:01:59.7]} 20. g3 {[%clk 0:02:09]} 20... Nc6 {[%clk 0:01:52.8]} 21.
Rd2 {[%clk 0:02:07.1]} 21... h6 {[%clk 0:01:48.8]} 22. Bh5 {[%clk 0:02:05.6]}
22... Raf8 {[%clk 0:01:39.3]} 23. b4 {[%clk 0:01:55.9]} 23... Rhg8 {[%clk
0:01:31.2]} 24. Rde2 {[%clk 0:01:52.1]} 24... Rg7 {[%clk 0:01:25.8]} 25. Ka2
{[%clk 0:01:50.2]} 25... Rc8 {[%clk 0:01:21.1]} 26. Rd2 {[%clk 0:01:29.8]} 26...
Ne5 {[%clk 0:01:19.2]} 27. f4 {[%clk 0:01:19.4]} 27... gxf4 {[%clk 0:01:17.2]}
28. gxf4 {[%clk 0:01:20.3]} 28... Nd7 {[%clk 0:01:10.2]} 29. Red1 {[%clk
0:01:09.3]} 29... Nf6 {[%clk 0:01:09]} 30. Bf3 {[%clk 0:01:08.3]} 30... Rg3
{[%clk 0:01:09]} 31. Bg2 {[%clk 0:01:01.5]} 31... Rcg8 {[%clk 0:01:05.2]} 32.
Bf1 {[%clk 0:00:59.6]} 32... Rf3 {[%clk 0:01:03.8]} 33. Rd4 {[%clk 0:00:56.6]}
33... Rg1 {[%clk 0:01:03.1]} 34. Be2 {[%clk 0:00:47.7]} 34... Rxd1 {[%clk
0:00:58.6]} 35. Rxd1 {[%clk 0:00:45.1]} 35... Rxf4 {[%clk 0:00:57.6]} 36. b5
{[%clk 0:00:45.4]} 36... Rf2 {[%clk 0:00:54.3]} 37. Bd3 {[%clk 0:00:44]} 37...
e5 {[%clk 0:00:54.7]} 38. a4 {[%clk 0:00:41.4]} 38... e4 {[%clk 0:00:54.7]} 39.
Bb1 {[%clk 0:00:38.1]} 39... Ke5 {[%clk 0:00:54.7]} 40. a5 {[%clk 0:00:37.6]}
40... d4 {[%clk 0:00:54.7]} 41. Rc1 {[%clk 0:00:34.4]} 41... Nd5 {[%clk
0:00:52.7]} 42. Rc8 {[%clk 0:00:30.3]} 42... d3 {[%clk 0:00:52.9]} 43. a6 {[%clk
0:00:26.9]} 43... bxa6 {[%clk 0:00:52.5]} 44. bxa6 {[%clk 0:00:27.8]} 44... Nb4+
{[%clk 0:00:50.7]} 45. Kb3 {[%clk 0:00:27.9]} 45... Nxa6 {[%clk 0:00:51.1]} 46.
Re8+ {[%clk 0:00:27.9]} 46... Kd4 {[%clk 0:00:50.5]} 47. Rd8+ {[%clk 0:00:28.5]}
47... Ke3 {[%clk 0:00:51]} 48. Kc3 {[%clk 0:00:28.8]} 48... Nc5 {[%clk
0:00:49.7]} 49. Rd4 {[%clk 0:00:28.3]} 49... Rf1 {[%clk 0:00:47]} 0-1

[Event "*** Titled Tuesday Blitz"]
[Site "Chess.com"]
[Date "2020.12.29"]
[Round "9"]
[White "stasiek18"]
[Black "nitpicker"]
[Result "1-0"]
[WhiteElo "2379"]
[BlackElo "2252"]
[TimeControl "180+1"]
[EndTime "11:44:14 PST"]
[Termination "stasiek18 won by resignation"]

1. e4 {[%clk 0:03:00.9]} 1... d5 {[%clk 0:02:59.4]} 2. exd5 {[%clk 0:03:00.6]}
2... Qxd5 {[%clk 0:02:59.6]} 3. Nc3 {[%clk 0:03:01]} 3... Qd8 {[%clk 0:02:59.7]}
4. d4 {[%clk 0:03:01.2]} 4... Nf6 {[%clk 0:02:59.5]} 5. Bc4 {[%clk 0:03:01.4]}
5... a6 {[%clk 0:02:59]} 6. Nf3 {[%clk 0:02:53.6]} 6... b5 {[%clk 0:02:58.8]} 7.
Bb3 {[%clk 0:02:54]} 7... c5 {[%clk 0:02:59]} 8. dxc5 {[%clk 0:02:44.3]} 8...
Qxd1+ {[%clk 0:02:57.2]} 9. Nxd1 {[%clk 0:02:45.2]} 9... e6 {[%clk 0:02:56.3]}
10. Be3 {[%clk 0:02:31.3]} 10... Bb7 {[%clk 0:02:56.2]} 11. a4 {[%clk
0:02:11.8]} 11... b4 {[%clk 0:02:55.6]} 12. a5 {[%clk 0:02:07.7]} 12... Nfd7
{[%clk 0:02:48.8]} 13. Ba4 {[%clk 0:02:02.9]} 13... Nc6 {[%clk 0:02:48.8]} 14.
Nd4 {[%clk 0:01:46.5]} 14... Rc8 {[%clk 0:02:48.5]} 15. Nxc6 {[%clk 0:01:43.4]}
15... Bxc6 {[%clk 0:02:48.1]} 16. Bxc6 {[%clk 0:01:44.3]} 16... Rxc6 {[%clk
0:02:47.8]} 17. Ra4 {[%clk 0:01:32]} 17... Nxc5 {[%clk 0:02:47.6]} 18. Bxc5
{[%clk 0:01:26.5]} 18... Bxc5 {[%clk 0:02:48.2]} 19. c3 {[%clk 0:01:16.2]} 19...
b3 {[%clk 0:02:26.3]} 20. Ke2 {[%clk 0:01:12.1]} 20... Ke7 {[%clk 0:02:26.1]}
21. Rc4 {[%clk 0:01:10.9]} 21... Rb8 {[%clk 0:02:21.2]} 22. Ne3 {[%clk
0:01:09.9]} 22... Rb5 {[%clk 0:02:18.5]} 23. Ra1 {[%clk 0:01:09.2]} 23... Kd7
{[%clk 0:02:13.1]} 24. Ng4 {[%clk 0:01:06.3]} 24... f6 {[%clk 0:02:08]} 25. h4
{[%clk 0:01:04.2]} 25... Bd6 {[%clk 0:01:59.9]} 26. Rxc6 {[%clk 0:01:03.9]}
26... Kxc6 {[%clk 0:02:00.4]} 27. Ne3 {[%clk 0:01:00.4]} 27... Kc5 {[%clk
0:01:53.3]} 28. g3 {[%clk 0:00:35.7]} 28... Bc7 {[%clk 0:01:52.8]} 29. Ra4
{[%clk 0:00:26.1]} 29... Rxa5 {[%clk 0:01:45.8]} 30. Rc4+ {[%clk 0:00:23.9]}
30... Kd6 {[%clk 0:01:39.5]} 31. Rb4 {[%clk 0:00:19.9]} 31... Rb5 {[%clk
0:01:37.8]} 32. Nc4+ {[%clk 0:00:18.7]} 32... Kc5 {[%clk 0:01:33.8]} 33. Rxb5+
{[%clk 0:00:18.4]} 33... Kxb5 {[%clk 0:01:30.2]} 34. Nd2 {[%clk 0:00:19.3]}
34... Ka4 {[%clk 0:01:27]} 35. Kd3 {[%clk 0:00:19.3]} 35... Bb6 {[%clk
0:01:25.6]} 36. f3 {[%clk 0:00:16.8]} 36... Bf2 {[%clk 0:01:24.5]} 37. Ne4
{[%clk 0:00:17.1]} 37... Bb6 {[%clk 0:01:16.8]} 38. Kc4 {[%clk 0:00:17.2]} 38...
Bc7 {[%clk 0:01:14.1]} 39. g4 {[%clk 0:00:15.7]} 39... h5 {[%clk 0:01:05.4]} 40.
gxh5 {[%clk 0:00:14.9]} 40... Bf4 {[%clk 0:00:55.5]} 41. Nc5+ {[%clk 0:00:14.5]}
41... Ka5 {[%clk 0:00:54.9]} 42. Nxe6 {[%clk 0:00:15.4]} 42... Bc1 {[%clk
0:00:54.2]} 43. Nxg7 {[%clk 0:00:12.5]} 43... Bxb2 {[%clk 0:00:53.4]} 44. Kxb3
{[%clk 0:00:12.5]} 44... Bc1 {[%clk 0:00:53]} 45. Nf5 {[%clk 0:00:12.3]} 45...
Kb6 {[%clk 0:00:52.1]} 46. h6 {[%clk 0:00:12.4]} 46... Bxh6 {[%clk 0:00:50.9]}
47. Nxh6 {[%clk 0:00:13.3]} 47... Kc5 {[%clk 0:00:50.9]} 48. Nf5 {[%clk
0:00:13.4]} 1-0

[Event "*** Titled Tuesday Blitz"]
[Site "Chess.com"]
[Date "2020.12.29"]
[Round "9"]
[White "rachidhuilda"]
[Black "Th3ChessViking"]
[Result "0-1"]
[WhiteElo "2219"]
[BlackElo "2451"]
[TimeControl "180+1"]
[EndTime "11:44:15 PST"]
[Termination "Th3ChessViking won by checkmate"]

1. d4 {[%clk 0:02:56.1]} 1... Nf6 {[%clk 0:02:59.1]} 2. Bg5 {[%clk 0:02:55.4]}
2... c5 {[%clk 0:02:57]} 3. d5 {[%clk 0:02:55]} 3... g6 {[%clk 0:02:56.7]} 4.
Bxf6 {[%clk 0:02:50.3]} 4... exf6 {[%clk 0:02:56.9]} 5. g3 {[%clk 0:02:47.8]}
5... d6 {[%clk 0:02:56.9]} 6. Bg2 {[%clk 0:02:48.1]} 6... f5 {[%clk 0:02:57.3]}
7. c4 {[%clk 0:02:43.8]} 7... Bg7 {[%clk 0:02:56.7]} 8. Nc3 {[%clk 0:02:44.4]}
8... O-O {[%clk 0:02:54.1]} 9. e3 {[%clk 0:02:44.4]} 9... Bxc3+ {[%clk
0:02:43.8]} 10. bxc3 {[%clk 0:02:43.7]} 10... b6 {[%clk 0:02:44.7]} 11. Nf3
{[%clk 0:02:29.5]} 11... Qf6 {[%clk 0:02:41.7]} 12. Qd3 {[%clk 0:02:14.4]} 12...
Ba6 {[%clk 0:02:40.1]} 13. O-O {[%clk 0:02:11.5]} 13... Nd7 {[%clk 0:02:39.9]}
14. Rfd1 {[%clk 0:02:07.3]} 14... Rfe8 {[%clk 0:02:38]} 15. a4 {[%clk
0:02:06.6]} 15... Re4 {[%clk 0:02:16.8]} 16. Nd2 {[%clk 0:02:00]} 16... Re7
{[%clk 0:02:17]} 17. Bf1 {[%clk 0:01:39.8]} 17... Ne5 {[%clk 0:02:15.1]} 18. Qc2
{[%clk 0:01:36.8]} 18... g5 {[%clk 0:02:03.8]} 19. a5 {[%clk 0:01:36]} 19...
bxa5 {[%clk 0:01:58.4]} 20. Rxa5 {[%clk 0:01:34]} 20... Bc8 {[%clk 0:01:58.6]}
21. Bg2 {[%clk 0:00:53]} 21... f4 {[%clk 0:01:45.5]} 22. exf4 {[%clk 0:00:53.2]}
22... gxf4 {[%clk 0:01:45]} 23. Qa2 {[%clk 0:00:41.2]} 23... Bg4 {[%clk
0:01:04.5]} 24. Ra1 {[%clk 0:00:38.1]} 24... fxg3 {[%clk 0:00:57.9]} 25. hxg3
{[%clk 0:00:36.2]} 25... Bf3 {[%clk 0:00:30.5]} 26. Nxf3 {[%clk 0:00:32.1]}
26... Nxf3+ {[%clk 0:00:29.9]} 27. Bxf3 {[%clk 0:00:28.2]} 27... Qxf3 {[%clk
0:00:30.8]} 28. Qd2 {[%clk 0:00:21.9]} 28... Re2 {[%clk 0:00:20.8]} 29. Qg5+
{[%clk 0:00:21.5]} 29... Kh8 {[%clk 0:00:15.6]} 30. Rf1 {[%clk 0:00:20.7]} 30...
Rg8 {[%clk 0:00:14.2]} 31. Qh6 {[%clk 0:00:14.7]} 31... Rxg3+ {[%clk 0:00:11.7]}
32. Kh2 {[%clk 0:00:14.2]} 32... Qg2# {[%clk 0:00:11.9]} 0-1

[Event "*** Titled Tuesday Blitz"]
[Site "Chess.com"]
[Date "2020.12.29"]
[Round "9"]
[White "hansen"]
[Black "12teen"]
[Result "1-0"]
[WhiteElo "2899"]
[BlackElo "2769"]
[TimeControl "180+1"]
[EndTime "11:44:17 PST"]
[Termination "hansen won by checkmate"]

1. e4 {[%clk 0:02:59.6]} 1... e6 {[%clk 0:02:59.8]} 2. d4 {[%clk 0:02:54.9]}
2... b6 {[%clk 0:03:00.7]} 3. Nf3 {[%clk 0:02:54.2]} 3... Bb7 {[%clk 0:03:01.2]}
4. Bd3 {[%clk 0:02:54.8]} 4... Nf6 {[%clk 0:03:01.2]} 5. Nbd2 {[%clk 0:02:54.5]}
5... d5 {[%clk 0:03:01.4]} 6. e5 {[%clk 0:02:54.1]} 6... Nfd7 {[%clk 0:03:02.1]}
7. O-O {[%clk 0:02:53.9]} 7... Be7 {[%clk 0:03:02.7]} 8. c3 {[%clk 0:02:50.8]}
8... c5 {[%clk 0:03:03.2]} 9. Ne1 {[%clk 0:02:42]} 9... Nc6 {[%clk 0:03:02.4]}
10. Nc2 {[%clk 0:02:42.3]} 10... a6 {[%clk 0:03:00.8]} 11. Qg4 {[%clk
0:02:40.9]} 11... g6 {[%clk 0:02:59]} 12. Nf3 {[%clk 0:02:38]} 12... h5 {[%clk
0:02:53.3]} 13. Qg3 {[%clk 0:02:31]} 13... Nf8 {[%clk 0:02:45.1]} 14. h4 {[%clk
0:02:24.8]} 14... c4 {[%clk 0:02:36.6]} 15. Be2 {[%clk 0:02:24.2]} 15... b5
{[%clk 0:02:36.3]} 16. a3 {[%clk 0:02:23.3]} 16... Qc7 {[%clk 0:02:31.1]} 17.
Bg5 {[%clk 0:02:20.2]} 17... Nd7 {[%clk 0:02:25.4]} 18. a4 {[%clk 0:02:05.4]}
18... Nb6 {[%clk 0:02:20.8]} 19. axb5 {[%clk 0:02:02.3]} 19... axb5 {[%clk
0:02:21.7]} 20. Bxe7 {[%clk 0:01:52.7]} 20... Qxe7 {[%clk 0:02:17.3]} 21. Ng5
{[%clk 0:01:52.6]} 21... Kd7 {[%clk 0:02:09.5]} 22. Qf4 {[%clk 0:01:51]} 22...
Rhf8 {[%clk 0:02:06.8]} 23. Nh7 {[%clk 0:01:48.9]} 23... Rh8 {[%clk 0:02:02]}
24. Nf6+ {[%clk 0:01:49.1]} 24... Kc7 {[%clk 0:02:02.3]} 25. Ne3 {[%clk
0:01:49.4]} 25... Rxa1 {[%clk 0:01:58.8]} 26. Rxa1 {[%clk 0:01:49.1]} 26... Ra8
{[%clk 0:01:59]} 27. Rb1 {[%clk 0:01:38]} 27... Ra2 {[%clk 0:01:57.7]} 28. Bf3
{[%clk 0:01:25.4]} 28... Na5 {[%clk 0:01:53.3]} 29. Ng8 {[%clk 0:01:23.8]} 29...
Qf8 {[%clk 0:01:48.1]} 30. Nh6 {[%clk 0:01:20.1]} 30... Na4 {[%clk 0:01:48.5]}
31. Nd1 {[%clk 0:01:20.3]} 31... Kb6 {[%clk 0:01:34.8]} 32. Nxf7 {[%clk
0:01:05.6]} 32... Bc6 {[%clk 0:01:06]} 33. Qf6 {[%clk 0:01:05.8]} 33... Nb3
{[%clk 0:01:06.1]} 34. Qxe6 {[%clk 0:00:49.6]} 34... Nd2 {[%clk 0:00:53.6]} 35.
Bxd5 {[%clk 0:00:49.4]} 35... Qe8 {[%clk 0:00:54.1]} 36. Qf6 {[%clk 0:00:28.2]}
36... Nxb1 {[%clk 0:00:48.6]} 37. Nd8 {[%clk 0:00:28.6]} 37... Kc7 {[%clk
0:00:30.4]} 38. Qd6+ {[%clk 0:00:28.7]} 38... Kc8 {[%clk 0:00:28.4]} 39. Nxc6
{[%clk 0:00:16.5]} 39... Nd2 {[%clk 0:00:19.2]} 40. Qb8+ {[%clk 0:00:13.1]}
40... Kd7 {[%clk 0:00:19.6]} 41. Qb7# {[%clk 0:00:13.9]} 1-0

[Event "*** Titled Tuesday Blitz"]
[Site "Chess.com"]
[Date "2020.12.29"]
[Round "9"]
[White "1977Ivan"]
[Black "RobPeresian"]
[Result "1-0"]
[WhiteElo "2684"]
[BlackElo "2443"]
[TimeControl "180+1"]
[EndTime "11:44:18 PST"]
[Termination "1977Ivan won by resignation"]

1. d4 {[%clk 0:03:00.9]} 1... d5 {[%clk 0:02:58.2]} 2. c4 {[%clk 0:03:01.3]}
2... c6 {[%clk 0:02:57.8]} 3. Nf3 {[%clk 0:03:01.3]} 3... Nf6 {[%clk 0:02:57.6]}
4. Nc3 {[%clk 0:03:01.8]} 4... dxc4 {[%clk 0:02:56.9]} 5. e4 {[%clk 0:03:01.2]}
5... b5 {[%clk 0:02:55.8]} 6. Be2 {[%clk 0:03:01.4]} 6... e6 {[%clk 0:02:52]} 7.
O-O {[%clk 0:02:57.7]} 7... Be7 {[%clk 0:02:50.5]} 8. a4 {[%clk 0:02:54.4]} 8...
b4 {[%clk 0:02:50.5]} 9. e5 {[%clk 0:02:53.6]} 9... bxc3 {[%clk 0:02:26.5]} 10.
exf6 {[%clk 0:02:53]} 10... Bxf6 {[%clk 0:01:54.5]} 11. bxc3 {[%clk 0:02:50.8]}
11... O-O {[%clk 0:01:55]} 12. Bxc4 {[%clk 0:02:46.3]} 12... Ba6 {[%clk
0:01:38.5]} 13. Bxa6 {[%clk 0:02:45.3]} 13... Nxa6 {[%clk 0:01:39.4]} 14. Qe2
{[%clk 0:02:44.9]} 14... Qc8 {[%clk 0:01:36.3]} 15. Ba3 {[%clk 0:02:43.3]} 15...
Rd8 {[%clk 0:01:35]} 16. Rab1 {[%clk 0:02:37.9]} 16... c5 {[%clk 0:01:32.8]} 17.
Rfd1 {[%clk 0:02:12.3]} 17... cxd4 {[%clk 0:01:31.5]} 18. cxd4 {[%clk
0:02:13.2]} 18... Rb8 {[%clk 0:01:27.1]} 19. Rxb8 {[%clk 0:02:10.5]} 19... Nxb8
{[%clk 0:01:26.8]} 20. Rc1 {[%clk 0:02:00.8]} 20... Qa6 {[%clk 0:01:24.6]} 21.
Qb5 {[%clk 0:01:56.5]} 21... h6 {[%clk 0:01:01.3]} 22. h3 {[%clk 0:01:49.7]}
22... Kh7 {[%clk 0:00:53.2]} 23. Rc7 {[%clk 0:01:46.4]} 23... Qxb5 {[%clk
0:00:49]} 24. axb5 {[%clk 0:01:45.6]} 24... Rd7 {[%clk 0:00:49.4]} 25. Rxd7
{[%clk 0:01:22.9]} 25... Nxd7 {[%clk 0:00:48.9]} 26. Bc5 {[%clk 0:01:23.5]}
26... Nb6 {[%clk 0:00:45.1]} 27. Ne5 {[%clk 0:01:21]} 27... Bxe5 {[%clk
0:00:41.8]} 28. dxe5 {[%clk 0:01:21.9]} 28... Kg6 {[%clk 0:00:42]} 29. g4 {[%clk
0:01:21.7]} 29... f6 {[%clk 0:00:33]} 30. f4 {[%clk 0:01:08.1]} 30... fxe5
{[%clk 0:00:31.1]} 31. fxe5 {[%clk 0:01:09]} 31... h5 {[%clk 0:00:30.9]} 32. Kg2
{[%clk 0:01:07.9]} 32... hxg4 {[%clk 0:00:31]} 33. hxg4 {[%clk 0:01:08.8]} 33...
Kf7 {[%clk 0:00:25.5]} 34. Kf3 {[%clk 0:01:08.1]} 34... g5 {[%clk 0:00:25.8]}
35. Be3 {[%clk 0:01:04.9]} 35... Kg6 {[%clk 0:00:24.5]} 36. Ke4 {[%clk
0:01:04.7]} 36... Nd5 {[%clk 0:00:08.9]} 37. Kd4 {[%clk 0:00:47.4]} 37... Kh6
{[%clk 0:00:06.6]} 38. Bd2 {[%clk 0:00:45.3]} 38... Kg6 {[%clk 0:00:06]} 39. Kc5
{[%clk 0:00:45.3]} 39... Nf4 {[%clk 0:00:05.2]} 40. Kd6 {[%clk 0:00:43.7]} 40...
Kf7 {[%clk 0:00:05.2]} 41. Be3 {[%clk 0:00:42.1]} 41... Nd3 {[%clk 0:00:04.9]}
42. Bxa7 {[%clk 0:00:41.2]} 1-0

[Event "*** Titled Tuesday Blitz"]
[Site "Chess.com"]
[Date "2020.12.29"]
[Round "9"]
[White "grunbergmihai"]
[Black "Fh2411"]
[Result "1/2-1/2"]
[WhiteElo "2452"]
[BlackElo "2561"]
[TimeControl "180+1"]
[EndTime "11:44:20 PST"]
[Termination "Game drawn by agreement"]

1. Nf3 {[%clk 0:03:00.6]} 1... d5 {[%clk 0:02:59.5]} 2. c4 {[%clk 0:02:58.5]}
2... c6 {[%clk 0:03:00.4]} 3. g3 {[%clk 0:02:57.5]} 3... Nf6 {[%clk 0:03:00.5]}
4. Bg2 {[%clk 0:02:57.7]} 4... Bf5 {[%clk 0:03:01.1]} 5. O-O {[%clk 0:02:58.2]}
5... e6 {[%clk 0:03:01]} 6. cxd5 {[%clk 0:02:57.8]} 6... exd5 {[%clk 0:03:00.6]}
7. d3 {[%clk 0:02:57.8]} 7... Be7 {[%clk 0:02:57.5]} 8. Nc3 {[%clk 0:02:56.7]}
8... O-O {[%clk 0:02:56.7]} 9. Qc2 {[%clk 0:02:52.3]} 9... h6 {[%clk 0:02:44.5]}
10. e4 {[%clk 0:02:51]} 10... Bh7 {[%clk 0:02:44.3]} 11. Re1 {[%clk 0:02:47.2]}
11... Bb4 {[%clk 0:02:39.8]} 12. a3 {[%clk 0:02:43.9]} 12... Bxc3 {[%clk
0:02:39]} 13. bxc3 {[%clk 0:02:43.8]} 13... dxe4 {[%clk 0:02:39.4]} 14. dxe4
{[%clk 0:02:43.6]} 14... Nbd7 {[%clk 0:02:29.9]} 15. Nd4 {[%clk 0:02:39.5]}
15... Re8 {[%clk 0:02:28.8]} 16. f3 {[%clk 0:02:27.9]} 16... Nc5 {[%clk
0:02:24.6]} 17. Be3 {[%clk 0:02:24]} 17... Nfd7 {[%clk 0:02:17.3]} 18. Rad1
{[%clk 0:02:21.5]} 18... Qa5 {[%clk 0:02:17]} 19. Nb3 {[%clk 0:02:06.8]} 19...
Qxa3 {[%clk 0:01:46.8]} 20. Nxc5 {[%clk 0:02:03.9]} 20... Nxc5 {[%clk
0:01:47.7]} 21. Ra1 {[%clk 0:01:59]} 21... Qb3 {[%clk 0:01:47.7]} 22. Qxb3
{[%clk 0:01:54.5]} 22... Nxb3 {[%clk 0:01:48.6]} 23. Rxa7 {[%clk 0:01:54]} 23...
Rxa7 {[%clk 0:01:46.1]} 24. Bxa7 {[%clk 0:01:54.9]} 24... f5 {[%clk 0:01:34.8]}
25. Bf1 {[%clk 0:01:39.1]} 25... Nd2 {[%clk 0:01:33.4]} 26. Kf2 {[%clk
0:01:27.5]} 26... Nxf1 {[%clk 0:01:31.9]} 27. Kxf1 {[%clk 0:01:22.7]} 27... fxe4
{[%clk 0:01:31.8]} 28. fxe4 {[%clk 0:01:22.4]} 28... Bxe4 {[%clk 0:01:29.1]} 29.
Bd4 {[%clk 0:01:13]} 29... b5 {[%clk 0:01:25.3]} 30. Kf2 {[%clk 0:01:11.5]}
30... Kf7 {[%clk 0:01:13.2]} 31. h4 {[%clk 0:01:10.7]} 31... g6 {[%clk
0:01:10.6]} 32. g4 {[%clk 0:01:08.7]} 32... h5 {[%clk 0:01:05]} 33. gxh5 {[%clk
0:00:56.9]} 33... gxh5 {[%clk 0:01:05.9]} 34. Re3 {[%clk 0:00:56]} 34... Re6
{[%clk 0:00:56.6]} 35. Rg3 {[%clk 0:00:50.5]} 35... Bg6 {[%clk 0:00:51.6]} 36.
Rf3+ {[%clk 0:00:49.7]} 36... Ke7 {[%clk 0:00:50.1]} 37. Bc5+ {[%clk 0:00:48.8]}
37... Kd7 {[%clk 0:00:50.3]} 38. Bd4 {[%clk 0:00:48.5]} 38... Kd6 {[%clk
0:00:49.2]} 39. Rf6 {[%clk 0:00:47.9]} 39... Rxf6+ {[%clk 0:00:45.2]} 40. Bxf6
{[%clk 0:00:47.4]} 40... Kd5 {[%clk 0:00:45.2]} 41. Ke3 {[%clk 0:00:46.9]} 41...
Kc4 {[%clk 0:00:43.4]} 42. Kd2 {[%clk 0:00:45.4]} 42... Kb3 {[%clk 0:00:38.4]}
43. Be7 {[%clk 0:00:43.5]} 43... Kc4 {[%clk 0:00:38.3]} 44. Bf6 {[%clk
0:00:43.3]} 44... c5 {[%clk 0:00:38.2]} 45. Bg7 {[%clk 0:00:41.3]} 45... Kb3
{[%clk 0:00:37.7]} 46. Bf8 {[%clk 0:00:38.6]} 46... b4 {[%clk 0:00:37.7]} 47.
Bxc5 {[%clk 0:00:32.6]} 47... bxc3+ {[%clk 0:00:37.7]} 48. Kc1 {[%clk
0:00:32.5]} 48... Kc4 {[%clk 0:00:37.6]} 49. Be7 {[%clk 0:00:30.5]} 1/2-1/2

[Event "*** Titled Tuesday Blitz"]
[Site "Chess.com"]
[Date "2020.12.29"]
[Round "9"]
[White "Zmeeed63"]
[Black "arna"]
[Result "0-1"]
[WhiteElo "2309"]
[BlackElo "2161"]
[TimeControl "180+1"]
[EndTime "11:44:21 PST"]
[Termination "arna won on time"]

1. d4 {[%clk 0:03:00.9]} 1... d5 {[%clk 0:02:50.2]} 2. c4 {[%clk 0:03:01.1]}
2... e6 {[%clk 0:02:47.3]} 3. Nc3 {[%clk 0:03:00.8]} 3... c6 {[%clk 0:02:43.4]}
4. e3 {[%clk 0:03:00]} 4... f5 {[%clk 0:02:42.2]} 5. g4 {[%clk 0:02:58.7]} 5...
Nf6 {[%clk 0:02:27.3]} 6. gxf5 {[%clk 0:02:41.1]} 6... exf5 {[%clk 0:02:28.2]}
7. Nf3 {[%clk 0:02:39.9]} 7... Bd6 {[%clk 0:02:16.7]} 8. cxd5 {[%clk 0:02:30.8]}
8... cxd5 {[%clk 0:02:15.8]} 9. Qb3 {[%clk 0:02:31.2]} 9... Nc6 {[%clk 0:02:10]}
10. Bd2 {[%clk 0:02:29]} 10... Na5 {[%clk 0:01:27.2]} 11. Bb5+ {[%clk
0:01:48.6]} 11... Bd7 {[%clk 0:01:15.4]} 12. Qa4 {[%clk 0:01:48.8]} 12... Nc6
{[%clk 0:01:14.7]} 13. Rg1 {[%clk 0:01:28.1]} 13... O-O {[%clk 0:00:43.6]} 14.
Qc2 {[%clk 0:00:44.2]} 14... Nb4 {[%clk 0:00:30.6]} 15. Qb3 {[%clk 0:00:35.5]}
15... Bxb5 {[%clk 0:00:17.3]} 16. Nxb5 {[%clk 0:00:36.4]} 16... Nc6 {[%clk
0:00:13.8]} 17. Ng5 {[%clk 0:00:31.2]} 17... Re8 {[%clk 0:00:11.5]} 18. Ke2
{[%clk 0:00:24.2]} 18... a6 {[%clk 0:00:10.5]} 19. Kd1 {[%clk 0:00:06.9]} 19...
axb5 {[%clk 0:00:10]} 20. Qxb5 {[%clk 0:00:04.4]} 20... Bf8 {[%clk 0:00:08]} 21.
Qxb7 {[%clk 0:00:03.6]} 21... Qd7 {[%clk 0:00:05.7]} 22. Qb3 {[%clk 0:00:03.4]}
22... Rab8 {[%clk 0:00:05.1]} 23. Qc2 {[%clk 0:00:03.3]} 23... h6 {[%clk
0:00:05.1]} 24. Nf3 {[%clk 0:00:03.3]} 24... Ne4 {[%clk 0:00:05.5]} 25. Nh4
{[%clk 0:00:02.6]} 25... Nxf2+ {[%clk 0:00:04.9]} 0-1